Cogmind - Beta 15 @@@ ROGUE MODE // 2025.05.31 @ 02:00:45 Player: Eve Result: Self-destructed Performance ------------- Evolutions (3) 1500 Regions Visited (4) 800 Robots Destroyed (49) 245 Value Destroyed (1230) 1230 Prototype IDs (8) 160 Alien Tech Used (0) 0 Bonus (0) 0 TOTAL SCORE: 3935 Bonus ------- None Cogmind --------- Core Integrity 502/700 Matter 2/300 Energy 140/140 System Corruption 1% Temperature Cool (36) Movement Flying (104) Ox1 Location -7/Factory Parts ------- > --- POWER (2) -------- Light Deuterium Engine > --- PROPULSION (5) --- VTOL Module Cesium-ion Thruster Cooled VTOL Module > --- UTILITY (4) ------ Salvage Targeting Computer Targeting Computer Target Analyzer Armor Integrity Analyzer > --- WEAPON (2) ------- Gauss Cannon Enhanced Gauss Cannon > --- INVENTORY (5) ---- Enhanced Nuclear Core Kinecellerator Transmission Jammer Enhanced Gauss Cannon Peak State ------------ > --- POWER ------------ Light Deuterium Engine Enhanced Nuclear Core > --- PROPULSION ------- Flight Unit Flight Unit Cesium-ion Thruster Xenon Bombardment Thruster Cooled VTOL Module > --- UTILITY ---------- Salvage Targeting Computer Targeting Computer Target Analyzer Armor Integrity Analyzer > --- WEAPON ----------- Gauss Cannon Gauss Cannon > --- INVENTORY -------- Kinecellerator Transmission Jammer Enhanced Gauss Cannon Enhanced Gauss Cannon [Rating: 42] Favorites ----------- Power Improved Ion Engine Engine Improved Ion Engine Power Core Enhanced Nuclear Core Propulsion Aluminum Leg Leg Aluminum Leg Flight Unit Flight Unit Utility Targeting Computer Device Improved Heat Sink Storage High-capacity Matter Pod Processor Targeting Computer Weapon EM Pulse Gun Energy Gun EM Pulse Gun Energy Cannon Ion Cannon Ballistic Gun Autogun Ballistic Cannon Improved Light Cannon Build | -11 -10 -9 -8 -7 ------- Run | Yrd Mat Mat Mat Fac Slots Evolved 6 | . . 2 2 2 Power 1 | . . . . 1 Propulsion 3 | . . 1 2 . Utility 2 | . . 1 . 1 Weapon . | . . . . . Parts Attached 56 | 7 7 12 9 21 Power 9 | 1 1 2 1 4 Engine 8 | 1 1 2 1 3 Core 1 | . . . . 1 Reactor . | . . . . . Propulsion 22 | 2 2 7 5 6 Treads . | . . . . . Leg 8 | 2 2 4 . . Wheel . | . . . . . Hover . | . . . . . Flight 14 | . . 3 5 6 Utility 9 | 1 3 . . 5 Device 3 | . 1 . . 2 Storage 2 | 1 1 . . . Processor 4 | . 1 . . 3 Hackware . | . . . . . Protection . | . . . . . Artifact . | . . . . . Weapon 16 | 3 1 3 3 6 Energy Gun 4 | 3 1 . . . Energy Cannon 1 | . . . 1 . Ballistic Gun 2 | . . 2 . . Ballistic Cannon 9 | . . 1 2 6 Launcher . | . . . . . Special Weapon . | . . . . . Impact Weapon . | . . . . . Slashing Weapon . | . . . . . Piercing Weapon . | . . . . . Special Melee Weapon . | . . . . . Unidentified Prototypes 2 | . . . . 2 Parts Lost 14 | . . 1 7 6 Power 4 | . . . 2 2 Propulsion 7 | . . 1 3 3 Utility 2 | . . . 1 1 Weapon 1 | . . . 1 . Highest Loss Streak 6 | . . 1 6 4 To Critical Strikes . | . . . . . Average Backups 3 | 1 3 4 1 3 Power . | . 1 . . . Propulsion 1 | . . 3 . . Utility . | . . . . 1 Weapon . | . 1 . . . Tool/Special . | . . . . . Unused Backups 8 | . 1 2 . 5 Power 1 | . . 1 . . Propulsion 1 | . 1 . . . Utility 3 | . . 1 . 2 Weapon 3 | . . . . 3 Tool/Special . | . . . . . Average Slot Usage (%) 92 | . 97 98 84 83 Engine 8 | . 14 11 3 3 Core 1 | . . . . 3 Leg 17 | . 28 31 1 . Flight 14 | . . . 38 33 Device 5 | . 2 10 7 2 Storage 7 | . 11 11 9 . Processor 14 | . 11 11 9 23 Energy Gun 8 | . 28 3 . . Ballistic Gun 3 | . . 11 2 . Ballistic Cannon 7 | . . 6 13 13 Peak Build Rating 42 | 6 9 14 18 42 Average Rating 16 | 4 7 13 14 30 On Entrance 7 | . 6 7 14 11 Naked Turns . | . . . . . Heaviest Build 26 | 12 13 19 19 26 Greatest Support 30 | 20 20 30 20 24 Greatest Overweight (x) 6 | . . 6 1 1 Average Overweight (x) . | . . . . . Largest Inventory Capacity 8 | 8 8 5 5 5 Average Capacity 5 | 7 6 5 5 5 Most Carried 5 | 4 5 5 5 5 Average Carried 3 | 1 3 4 1 3 Final Capacity 8 | 8 5 5 5 5 Final Carried 5 | 2 5 5 5 4 Class Distribution -------------------- 40% | Scavenger-Mutant 35% | Mutant 15% | Scavenger-Sprinter 8% | Sprinter Dominant Class ---------------- Mutant | -10/Materials Scavenger-Mutant | -9/Materials Scavenger-Mutant | -8/Materials Scavenger-Sprinter | -7/Factory Resources | -11 -10 -9 -8 -7 ----------- Run | Yrd Mat Mat Mat Fac Matter Collected 1357 | 197 333 478 86 263 Remotely . | . . . . . Salvage Created 1308 | . 286 632 50 340 Parts 96 | . 13 51 6 26 Haulers Intercepted . | . . . . . Recyclers Shooed 1 | . . 1 . . Parts Field Recycled . | . . . . . Retrieved Matter . | . . . . . Parts Self-Destructed . | . . . . . Prevented . | . . . . . Kills | -11 -10 -9 -8 -7 ------- Run | Yrd Mat Mat Mat Fac Combat Hostiles Destroyed 39 | . 6 19 7 7 Guns 21 | . 6 14 1 . Cannons 18 | . . 5 6 7 Classes Destroyed 9 | . 1 5 . 3 Worker 2 | . . 2 . . Builder 1 | . . . . 1 Recycler 2 | . . 1 . 1 Watcher 5 | . . 1 . 4 Swarmer 20 | . . 11 6 3 Grunt 14 | . 6 5 1 2 Sentry 3 | . . 3 . . Programmer 1 | . . . . 1 Heavy 1 | . . . . 1 Best Kill Streak 5 | . 2 5 3 4 Combat Bots Only 5 | . 2 5 3 4 Max Kills in Single Turn 2 | . 1 2 1 2 Gunslinging . | . . . . . Exploded . | . . . . . Melee . | . . . . . Uniques/NPCs Destroyed . | . . . . . Combat | -11 -10 -9 -8 -7 -------- Run | Yrd Mat Mat Mat Fac Hostile Shots Fired 214 | . 23 73 71 47 Missed 79 | . 8 26 26 19 Hits 135 | . 15 47 45 28 Projectile 135 | . 15 47 45 28 Critical Strikes 4 | . . 2 1 1 Damage Taken 2067 | . 168 574 542 783 Core 428 | . 33 92 105 198 Absorbed by Shields . | . . . . . Core Remaining (%) 85 | 100 86 77 80 . Volleys Fired 123 | . 17 50 28 28 Largest 2 | . 2 2 2 2 Hottest 87 | . 80 63 70 87 Shots Fired 227 | . 34 100 43 50 Gun 118 | . 34 74 10 . Cannon 109 | . . 26 33 50 Launcher . | . . . . . Special . | . . . . . Kinetic 175 | . . 82 43 50 Thermal . | . . . . . Explosive . | . . . . . Electromagnetic 52 | . 34 18 . . Robot Hit Streak 9 | . 5 5 7 9 Robot Miss Streak 3 | . 3 3 3 3 Penetration Max . | . . . . . Secondary Targets . | . . . . . Shots Hit Robots 123 | . 18 55 26 24 Core Hits 62 | . 8 30 8 16 Critical Kills 1 | . . 1 . . Critical Parts Destroyed . | . . . . . Critical Strikes 8 | . . 1 2 5 Destroy 1 | . . 1 . . Blast 7 | . . . 2 5 Melee Attacks . | . . . . . Impact . | . . . . . Slashing . | . . . . . Piercing . | . . . . . Sneak Attacks . | . . . . . Combat Hostiles . | . . . . . Follow-up Attacks . | . . . . . Damage Inflicted 2552 | . 246 946 572 788 Guns 985 | . 246 651 88 . Cannons 1567 | . . 295 484 788 Explosions . | . . . . . Melee . | . . . . . Ramming . | . . . . . Kinetic 2157 | . . 797 572 788 Thermal . | . . . . . Explosive . | . . . . . Electromagnetic 395 | . 246 149 . . Impact . | . . . . . Slashing . | . . . . . Piercing . | . . . . . Highest Corruption 1 | . . . . 1 Average Corruption 1 | . . . . 1 Corruption Purged . | . . . . . Corruption Blocked . | . . . . . Effects 4 | . . . . 4 Message Errors 1 | . . . . 1 Matter Fused 2 | . . . . 2 Heat Flow Errors 1 | . . . . 1 Overload Shots . | . . . . . Overflow Damage 4 | . . . 4 . Projectiles 4 | . . . 4 . Explosions . | . . . . . Melee . | . . . . . Knockbacks 14 | . . 2 9 3 Impact . | . . . . . Kinetic 14 | . . 2 9 3 Secondary . | . . . . . Self-Inflicted Damage . | . . . . . Shots . | . . . . . Rammed . | . . . . . Targets Rammed . | . . . . . Kicked . | . . . . . Crushed . | . . . . . Highest Temperature 186 | . 96 3 5 186 Average Temperature 29 | . 36 2 3 29 Received Heat Transfer 450 | . 90 225 126 9 Siege Activations . | . . . . . Martial Activations . | . . . . . Shielding Activations . | . . . . . Robots Disrupted . | . . . . . Combat Hostiles . | . . . . . Robots Corrupted . | . . . . . Combat Hostiles . | . . . . . Parts Fried . | . . . . . Impact Corruptions . | . . . . . Robots Melted . | . . . . . Combat Hostiles . | . . . . . Parts Melted . | . . . . . Heat Transferred . | . . . . . Parts Sabotaged . | . . . . . Parts Stolen . | . . . . . Parts Stripped . | . . . . . Power Chain Reactions . | . . . . . Alert | -11 -10 -9 -8 -7 ------- Run | Yrd Mat Mat Mat Fac Maximum Alert Level 1 | . . 1 1 . Low Security (%) 83 | 100 100 47 99 100 Level 1 16 | . . 52 . . Level 2 . | . . . . . Level 3 . | . . . . . Level 4 . | . . . . . Level 5 . | . . . . . High Security . | . . . . . Max Security . | . . . . . Peak Influence 353 | . 120 353 202 131 Initial 145 | . . 5 145 68 Average 96 | . 45 174 153 49 Influence Increases 1381 | . 198 629 197 357 Destroy 0b10 Robot/C 780 | . 120 380 140 140 Destroy 0b10 Robot/NC 50 | . . 20 . 30 Destroy Leader 150 | . 20 82 10 38 Successful Hack 84 | . 28 23 . 33 Disable Machine 90 | . . . 30 60 Destroy Structure 17 | . . 4 2 11 Partial Spotted 30 | . . . . 30 Lose Combat Pursuer 180 | . 30 120 15 15 Influence Decreases 1250 | . 184 298 390 378 Entered New Map 293 | . . 9 200 84 Time Decay 817 | . 184 279 120 234 Lost Part 140 | . . 10 70 60 Squads Dispatched 8 | . 3 1 . 4 Investigation 2 | . 1 . . 1 Extermination 1 | . . . . 1 Reinforcement 5 | . 2 1 . 2 Assault . | . . . . . Garrison . | . . . . . Intercept . | . . . . . Searches Triggered . | . . . . . Construction Impeded . | . . . . . Haulers Reinforced . | . . . . . Active Scanning Responses . | . . . . . Cargo Convoy Interrupts . | . . . . . Stealth | -11 -10 -9 -8 -7 --------- Run | Yrd Mat Mat Mat Fac Distress Signals 2 | . 1 . 1 . Communications Jammed . | . . . . . Distress Signals . | . . . . . Times Spotted 70 | . 8 32 13 17 Peak Tracking Total 6 | . 5 4 6 5 Tactical Retreats 8 | . 1 5 1 1 Traps | -11 -10 -9 -8 -7 ------- Run | Yrd Mat Mat Mat Fac Traps Triggered 1 | . . . . 1 Indirectly . | . . . . . Trap Hack Attempts . | . . . . . Triggered . | . . . . . Disarmed . | . . . . . Reprogrammed . | . . . . . Reused . | . . . . . Traps Extracted . | . . . . . Installed . | . . . . . Triggered . | . . . . . Machines | -11 -10 -9 -8 -7 ---------- Run | Yrd Mat Mat Mat Fac Machines Disabled 6 | . . . 2 4 Max in Single Turn 1 | . . . 1 1 Machines Repaired . | . . . . . Machines Dismantled . | . . . . . Machines Sabotaged . | . . . . . Overloaded Fab Kills . | . . . . . Hacking | -11 -10 -9 -8 -7 --------- Run | Yrd Mat Mat Mat Fac Machines Accessed 17 | . 6 3 1 7 Terminals 13 | . 5 3 1 4 Fabricators 1 | . . . . 1 Repair Stations . | . . . . . Recycling Units 2 | . 1 . . 1 Scanalyzers 1 | . . . . 1 Garrison Access . | . . . . . Total Hacks 39 | . 14 9 2 14 Successful 18 | . 4 5 1 8 Failed 21 | . 10 4 1 6 Catastrophic 8 | . 3 1 1 3 Database Lockouts . | . . . . . Manual . | . . . . . Terminals 31 | . 12 9 2 8 Fabricators 1 | . . . . 1 Repair Stations . | . . . . . Recycling Units 5 | . 2 . . 3 Scanalyzers 2 | . . . . 2 Garrison Access . | . . . . . Terminal Hacks 13 | . 3 5 1 4 Part Schematic 1 | . . . . 1 Prototype ID Bank 3 | . 1 2 . . Open DSF 1 | . . . . 1 Emergency Access Points 2 | . . 1 . 1 Locate Traps 1 | . 1 . . . Dispatch Records 2 | . . 1 1 . Maintenance Status 1 | . . . . 1 Hauler Manifests 1 | . 1 . . . Zone Layout 1 | . . 1 . . Fabricator Hacks 1 | . . . . 1 Build 1 | . . . . 1 Repair Station Hacks . | . . . . . Recycling Unit Hacks 3 | . 1 . . 2 Report Inventory 2 | . 1 . . 1 Retrieve Matter 1 | . . . . 1 Scanalyzer 1 | . . . . 1 Insert Component 1 | . . . . 1 Garrison Access Hacks . | . . . . . Unauthorized Hacks . | . . . . . Terminals . | . . . . . Fabricators . | . . . . . Repair Stations . | . . . . . Recycling Units . | . . . . . Scanalyzers . | . . . . . Garrison Access . | . . . . . Data Cores Recovered 1 | . 1 . . . Used 1 | . 1 . . . Hacking Detections 17 | . 6 3 1 7 Full Trace Events 1 | . . . . 1 Feedback Events . | . . . . . Feedback Blocked . | . . . . . Robot Schematics Acquired . | . . . . . Robots Built . | . . . . . Authchips . | . . . . . Time . | . . . . . Total Robot Build Rating . | . . . . . Part Schematics Acquired 1 | . . . . 1 Parts Built 2 | . . . . 2 Authchips . | . . . . . Time 53 | . . . . 53 Total Part Build Rating 12 | . . . . 12 Parts Repaired . | . . . . . Time . | . . . . . Parts Recycled . | . . . . . Recycled Matter . | . . . . . Retrieved Matter . | . . . . . Retrieved Components . | . . . . . Parts Scanalyzed 1 | . . . . 1 Part Schematics Acquired . | . . . . . Parts Damaged . | . . . . . Bothacking | -11 -10 -9 -8 -7 ------------ Run | Yrd Mat Mat Mat Fac Used RIF Installer . | . . . . . Robots Hacked . | . . . . . Non-combat . | . . . . . Combat . | . . . . . Robot Hacks Applied . | . . . . . Relay Couplers Released . | . . . . . Fabnet Peak Effective % . | . . . . . Robots Rewired . | . . . . . Allies Hacked . | . . . . . Hacks Repelled . | . . . . . Allies | -11 -10 -9 -8 -7 -------- Run | Yrd Mat Mat Mat Fac Total Allies . | . . . . . Largest Group . | . . . . . Highest-Rated Group . | . . . . . Highest-Rated Ally . | . . . . . Total Orders . | . . . . . Ally Attacks . | . . . . . Total Damage . | . . . . . Kills . | . . . . . Allies Corrupted . | . . . . . Allies Melted . | . . . . . Intel | -11 -10 -9 -8 -7 ------- Run | Yrd Mat Mat Mat Fac Active Infowar (turns) 194 | . . . . 194 Sensors 194 | . . . . 194 Robot Analysis Total . | . . . . . Derelict Logs Recovered . | . . . . . Drone Launches . | . . . . . Drone Recoveries . | . . . . . Exploration | -11 -10 -9 -8 -7 ------------- Run | Yrd Mat Mat Mat Fac Turns Passed 2061 | 73 551 620 241 576 Spaces Moved 2005 | 50 399 364 184 1008 Core 18 | 17 . 1 . . Treads . | . . . . . Legs 795 | 33 399 363 . . Wheels . | . . . . . Hover . | . . . . . Flight 1192 | . . . 184 1008 Fastest Speed 26 | 50 120 120 28 26 Average Speed 73 | 96 120 120 78 35 Slowest Speed 350 | 120 120 350 117 104 Overloaded Moves . | . . . . . Propulsion Burnouts . | . . . . . Robots Hopped 4 | . . . . 4 Potential Cave-ins . | . . . . . Cave-ins Triggered . | . . . . . Exploration Rate (%) 35 | 4 85 34 28 28 Regions Visited 4 Branch Regions . Pre-discovered Areas . | . . . . . Known Exits Taken . | . . . . . Unknown Exits Taken 4 | 1 1 1 1 . Scrap Searched . | . . . . . Spaces Dug . | . . . . . Terrain Destroyed 13 | . . 1 2 10 Melee . | . . . . . Projectile 13 | . . 1 2 10 AOE . | . . . . . Terrain Rammed . | . . . . . Walls Destroyed . | . . . . . Machines Disabled . | . . . . . Actions | -11 -10 -9 -8 -7 --------- Run | Yrd Mat Mat Mat Fac Total 2388 | 74 438 458 241 1177 Wait 98 | 10 . . . 88 Move 1994 | 49 398 363 183 1001 Hop 3 | . . . . 3 Pick Up 53 | 8 9 11 10 15 Fast Attach 11 | . . 5 3 3 Attach 35 | 6 2 7 7 13 Detach 7 | . 1 3 . 3 Swap 22 | 1 5 5 2 9 Drop 42 | . 6 14 8 14 Fire 123 | . 17 50 28 28 Melee . | . . . . . Ram . | . . . . . Kick . | . . . . . Crush . | . . . . . Escape Stasis . | . . . . . Rewire . | . . . . . Trap . | . . . . . Miscellaneous . | . . . . . Route ------- -11/Scrapyard -10/Materials (discovered 3 exits: *Mat x2 / [*Sub]) -9/Materials (discovered 2 exits: *Mat / [*Min]) -8/Materials -7/Factory History --------- Turn | Location | Event 2 | -11/Scrapyard | Met Revision 17 8 | -11/Scrapyard | Discovered new exit (range 16) 74 | -11/Scrapyard | Entered Materials 75 | -10/Materials | Met a group of wandering Federalists 212 | -10/Materials | Discovered new exit (range 6) 236 | -10/Materials | Lost 3 allies 308 | -10/Materials | Build established: Mutant 462 | -10/Materials | Discovered new exit (range 8) 586 | -10/Materials | Discovered new exit (range 10) 625 | -10/Materials | Entered another Materials area 625 | -9/Materials | Evolved 2 slots: Propulsion x1, Utility x1 650 | -9/Materials | Discovered new exit (range 16) 910 | -9/Materials | Build established: Scavenger-Mutant 1225 | -9/Materials | Discovered new exit (range 16) 1245 | -9/Materials | Entered another Materials area 1245 | -8/Materials | Evolved 2 slots: Propulsion x2 1476 | -8/Materials | Discovered new exit (range 7) 1486 | -8/Materials | Entered Factory 1486 | -7/Factory | Evolved 2 slots: Power x1, Utility x1 1489 | -7/Factory | Lost 6 parts (1p3n1u1w) 1830 | -7/Factory | Fabricated Enh. Gauss Cannon (x2) 1942 | -7/Factory | Lost 4 parts (1p3n) 2062 | -7/Factory | Self-destructed Last Messages --------------- 01973_ K-01 Serf collects debris. 01974_ R-06 Scavenger collects Visual Processing Unit. 01977_ K-01 Serf collects debris. 01977_ R-06 Scavenger collects Imp. Hover Unit. 01977_ Acquired 6 matter. 01981_ U-05 Engineer builds a Wall. 01986_ K-01 Serf collects debris. 01991_ W-25 Informer destroyed. 01991_ U-05 Engineer destroyed. 01992_ K-01 Serf collects debris. 02029_ System corrupted: Matter fused (-5). 02041_ Slug penetrates Assembly Bed. 02041_ Assembly Bed disabled. 02041_ Slug penetrates G-47 Trooper. 02041_ G-47 Trooper destroyed. 02053_ Slug penetrates G-47 Trooper. 02056_ G-47 Trooper Aluminum Leg blasted off. 02056_ G-47 Trooper destroyed. 02056_ Slug penetrates Door. 02062_ System corrupted: Matter fused (-9). Map ----- +----------------------------------------------------+ | ?????????????????#=!""""""" ??????????????? | | ?????????????????#=%""""""" ???????????????? | | ?????????????????#!%""""""" * " "???????????????? | | ?????????????????# % """""=%%""G"" #???????????? | | ?????????????????# = = #???????????? | | ?????????????????# #???????????? | | ?????????????????# #???????????????? | | ?????????????????# #???????????????? | | ?????????????????# ######### #???????????????? | | ???############### ######????????????????????? | | ???# %# "#???#???????????????? | | ???# #] #??? #???????????????? | | ???# """"""""" # ???? #???????????????? | | ???# """"""""" # #### #???????????????? | | # """"""""" # + #???????????????? | | # """"""""" #= # #???????????????? | | # """" "" " ###### #???????????????? | | " # " "" #???????????????? | | # ####???????????????? | | " # #??????????????????? | | # u #??????????????????? | | " # * u #????????""" ???? | | # [ ################ ##?????"" *" "#? | | #### #?????? ??# ;####% =%% #?? | | #??????? """" # =%bg% *! = #?? | | ##???????""S"" /@ ##### ! #?? | | #??????? "" "" # #?????? #?? | | #?????? ??# #???????? #?? | | #?????#####????# #?????????? #?? | | #####+####??????????#######+######????????? ??? | | ]!!# ??????????????# #???????????##??? | | !! #[??????????????# #???????????????? | | !! #???????????????# #???????????????? | | #???????????????# #???????????????? | | #???????????????# #????? ??????? | | #???????????????# #????? #????? | | #???????????????# #????# #????? | | #???????????????# #????# #????? | | #???????????????# #????# ##+#?? | | #####???????????????# #????# ??? | | ????????????????????# #????# ???? | | ????????????????????# #????# ????? | | ????????????????????##############????# #????? | | ??????????????????????????????######??# #????? | | ############################### ?# #????? | | # """ ?# #????? | | # """ # #????? | | # """ # #????? | | # + #????? | | # # #????? | +----------------------------------------------------+ Best States ------------- Heat Dissipation 45 Energy Generation 23 Energy Capacity 325 Matter Stores 500 Matter Capacity 500 Sight Range 16 Robot Scan Range 15 Terrain Scan Density 10 Evasion (%) 64 Targeting Accuracy 5 Target Analysis 5 Armor Integrity Analysis 30 Salvage Targeting 1 Item Schematics ----------------- Fusion Compressor | -7/Factory | Hacked Robot Schematics ------------------ None Fabricated ------------ Enh. Gauss Cannon | x2 | -7/Factory | Preloaded Repaired ---------- Nothing Alien Tech Used ----------------- None Achievements -------------- Dynamic Key Challenges ------------ None Game ------ Seed InsulatedGravityExtractor Manual? 0 Play Time 00:42:17 Cumulative 16.5 hours Start 2025.05.31 @ 01:20:08 End 2025.05.31 @ 02:00:45 Sessions 1 Manual Loads 0 Difficulty Rogue Special Mode None Game No. 21 Rogue 15 Adventurer 0 Explorer 6 Win Type - Total 0 Types 0/0/0/0/0/0/0/0/0/0 Lore% 12 Gallery% 14 Achievement% 19 Wizard Run 0 Options --------- Layout 0 ASCII 0 Keyboard 0 Movement Mouse Keybinds 0 Fullscreen 2 Font 18/SmallcapsGlow Map View 76x50 Zoom Use 0% Tactical HUD 1 Map Filters NONE Filters NONE Steam 1 RUN: 78732894-aa54-4f96-b992-917864e54ffd